[Event "Chinese League Division-A 2024"]
[Site "Fuling Chongqing"]
[Date "2024.07.01"]
[Round "5.26"]
[White "Bai, Jinshi"]
[Black "Chen, Qi b"]
[Result "0-1"]
[ECO "D35"]
[WhiteElo "2564"]
[BlackElo "2481"]
[Annotator "TA"]
[PlyCount "80"]
[EventDate "2024.06.28"]
[EventType "team-tourn"]
[EventCountry "CHN"]
[SourceTitle "playchess.com"]
[Source "ChessBase"]
[SourceQuality "1"]
[TimeControl "40/5400+30:1800+30"]

{[%evp 15,80,9,13,7,47,26,28,24,37,28,28,7,29,0,22,0,0,0,0,-8,0,-2,0,-14,46,48,73,75,80,70,59,54,118,110,89,113,141,58,88,9,3,11,14,14,10,17,13,12,17,0,97,-346,-328,-346,-352,-345,-333,-379,-379,-356,-350,-424,-400,-409,-397,-408,-405]} 1. d4 {[%emt 0:00:04]} Nf6 {[%emt 0:00:09]} 2. c4 {[%emt 0:00:10]} e6 {[%emt 0:00:13]} 3. Nc3 {[%emt 0:00:11]} d5 {[%emt 0:01:18]} 4. cxd5 {[%emt 0:00:15]} exd5 {[%emt 0:00:04]} 5. Bg5 {[%emt 0:00:22][%cal Bc1g5,Bg5h4,Bh4g3][%mdl 32]} c6 {[%emt 0:02:41]} 6. e3 {[%emt 0:00:23]} h6 {[%emt 0:00:17]} 7. Bh4 {[%emt 0:00:40]} Be7 {[%emt 0:00:39]} 8. Bd3 {[%emt 0:01:30]} O-O {[%emt 0:01:04]} 9. Nge2 {[%emt 0:04:54]} Bg4 {[%emt 0:06:12]} 10. O-O {[%emt 0:06:17]} Bxe2 {[%emt 0:05:32]} 11. Qxe2 {[%emt 0:09:10] White has an edge.} Ne8 {[%emt 0:06:07]} 12. Bg3 {[%emt 0:01:34]} Bd6 {[%emt 0:00:36]} 13. Rab1 {[%emt 0:22:48]} a5 {[%emt 0:07:43]} 14. a3 {[%emt 0:02:54]} Na6 {[%emt 0:04:42]} 15. Rfc1 {[%emt 0:02:16]} Bxg3 {[%emt 0:05:12]} 16. hxg3 {[%emt 0:00:05]} Nd6 {[%emt 0:00:06]} 17. b4 {[%emt 0:04:10]} axb4 {[%emt 0:01:15]} 18. axb4 {[%emt 0:00:06]} b5 $1 {[%emt 0:02:33]} 19. e4 {[%emt 0:00:25]} dxe4 {[%emt 0:02:34]} (19... Re8 $1 $11) 20. Nxe4 $14 {[%emt 0:03:58]} Re8 {[%emt 0:24:41] Hoping for ...Nxe4.} 21. Qf3 {[%emt 0:02:22] aiming for Nxd6.} (21. Rxc6 $2 Nxe4 22. Bxe4 Qxd4 $17) 21... Rc8 {[%emt 0:01:58][%cal Oa6b4]} 22. Nc5 {[%emt 0:04:02]} Nb8 {[%emt 0:01:14]} 23. Ra1 {[%emt 0:01:55]} Qb6 {[%emt 0:06:02]} (23... Qg5 $14) 24. g4 $1 $16 {[%emt 0:05:27]} Qd8 {[%emt 0:02:48] Repels g5} 25. Qf4 {[%emt 0:09:02]} Qe7 {[%emt 0:03:59] Prevents Re1.} 26. Ra8 {[%emt 0:05:29]} ({White should play} 26. Re1 $1 $16 {[%cal Re1e7]} Qc7 27. Re3) 26... Rcd8 {[%emt 0:01:09]} 27. Rca1 {[%emt 0:00:20]} ({Better is} 27. g3 $16) 27... Nd7 $11 {[%emt 0:09:24]} 28. R8a6 {[%emt 0:04:39]} Nxc5 {[%emt 0:00:00]} (28... Nf6 {looks sharper.} 29. Rxc6 Nd5 30. Qe5 Nc4) 29. bxc5 {[%emt 0:02:41]} Ne4 {[%emt 0:00:00]} 30. Rxc6 {[%emt 0:02:21][%cal Oc6c7] Strongly threatening Rc7!} Rxd4 {[%emt 0:00:00]} 31. Rc7 {[%emt 0:00:42]} Qe6 {[%emt 0:02:33]} 32. Bxb5 {[%emt 0:00:29]} Red8 {[%emt 0:01:44]} (32... Nc3 $11 {keeps the balance.} 33. Qxd4 Nxb5) 33. Ra4 $2 {[%emt 0:03:33][%mdl 8192] [#] White does not recover from this.} (33. Qf5 $16 {Threatens to win with Qxe6.} Rd1+ 34. Rxd1 Rxd1+ 35. Kh2 Qxf5 36. gxf5) 33... Rxa4 $1 $19 {[%emt 0:00:51]} 34. Bxa4 {[%emt 0:00:04][%cal Oa4b3] [#]} Nc3 $1 {[%emt 0:00:09] ( -> ...Ne2+)} 35. Kh2 {[%emt 0:02:11]} Nxa4 {[%emt 0:00:21]} 36. c6 {[%emt 0:00:08]} Nb6 {[%emt 0:00:33]} 37. Rb7 {[%emt 0:00:02]} Nd5 {[%emt 0:00:14]} (37... Qxc6 38. Qxf7+ Kh8 39. Qxg7#) 38. c7 {[%emt 0:01:17]} Rc8 {[%emt 0:00:08]} (38... Nxf4 $2 {perishes.} 39. cxd8=Q+ (39. cxd8=B $2 {is a self mate.} Qxg4 40. g3 Qh3+ 41. Kg1 Ne2#) 39... Kh7 40. Qd7 Qxd7 41. Rxd7 $18) 39. Qg3 {[%emt 0:00:08]} Qd7 {[%emt 0:01:00]} 40. Qd3 {[%emt 0:00:00]} Qc6 {[%emt 0:00:00] Weighted Error Value: White=0.41/Black=0.15 (very precise) .  Loses game:     	White=1     	---        Mistake:       	White=2     	Black=3      Inaccurate:     	White=1     	Black=2      OK:         	White=10    	Black=14     Best:        	White=1     	Black=3      Strong:       	---       	Black=3} ({Not} 40... Rxc7 41. Rb8+ Rc8 42. Rxc8+ Qxc8 43. Qxd5 $15) 0-1

[Event "Chinese League Division-A 2024"]
[Site "Fuling Chongqing"]
[Date "2024.07.01"]
[Round "5.27"]
[White "Xu, Jun"]
[Black "Kong, Xiangrui"]
[Result "1/2-1/2"]
[ECO "D12"]
[WhiteElo "2471"]
[BlackElo "2439"]
[Annotator "TA"]
[PlyCount "113"]
[EventDate "2024.06.28"]
[EventType "team-tourn"]
[EventCountry "CHN"]
[SourceTitle "playchess.com"]
[Source "ChessBase"]
[SourceQuality "1"]
[TimeControl "40/5400+30:1800+30"]

{[%evp 19,113,12,15,10,14,4,15,12,2,11,14,0,12,6,12,-9,0,0,0,0,0,-15,100,104,116,73,135,101,120,107,112,70,62,60,84,54,52,47,58,50,51,45,120,0,0,0,0,0,0,-45,-33,-52,-50,-12,-18,-7,11,11,11,11,11,12,14,14,29,29,29,29,29,0,0,0,0,0,0,0,0,0,0,0,0,0,0,0,0,0,0,0,0,0,0,0,0,0,0,0]} 1. d4 {[%emt 0:00:06]} d5 {[%emt 0:00:07]} 2. c4 {[%emt 0:00:07]} c6 {[%emt 0:00:04]} 3. Nf3 {[%emt 0:01:00]} Nf6 {[%emt 0:00:06]} 4. e3 {[%emt 0:00:22]} Bf5 {[%emt 0:00:16]} 5. Nc3 {[%emt 0:01:01]} e6 {[%emt 0:00:09]} 6. Nh4 {[%emt 0:00:19]} Be4 {[%emt 0:00:33]} 7. f3 {[%emt 0:00:56]} Bg6 {[%emt 0:00:02]} 8. Qb3 {[%emt 0:00:41]} Qc7 {[%emt 0:00:06]} 9. Bd2 {[%emt 0:00:49] D12: Slav Defence: 3 Nf3 Nf6 4 e3 Bf5.} Be7 {[%emt 0:01:09]} 10. g3 {[%emt 0:03:59]} O-O {[%emt 0:03:23]} 11. Nxg6 {[%emt 0:03:39]} hxg6 {[%emt 0:01:20]} 12. Rc1 {[%emt 0:00:15]} dxc4 {[%emt 0:01:15]} 13. Bxc4 {[%emt 0:01:55]} Nbd7 {[%emt 0:03:34]} 14. O-O {[%emt 0:04:02]} e5 {[%emt 0:11:03]} 15. d5 {[%emt 0:08:37]} b5 {[%emt 0:30:55]} 16. Be2 {[%emt 0:00:28]} Qd6 $146 {[%emt 0:01:01]} ({Predecessor:} 16... Nc5 17. Qc2 cxd5 18. Nxb5 Qd7 19. b4 Ne6 20. Qc6 Rfd8 21. a3 a6 22. Nc7 Nxc7 23. Qxc7 {0-1 Erigaisi,A (2559)-Bluebaum,M (2647) Titled Tuesday intern op 11th Aug blitz 2020 (10)}) 17. e4 {[%emt 0:06:48]} Nc5 {[%emt 0:12:00]} 18. Qd1 {[%emt 0:04:28]} cxd5 {[%emt 0:03:59]} 19. Nxd5 {[%emt 0:01:52]} Nxd5 {[%emt 0:00:01]} 20. exd5 {[%emt 0:00:10]} Qb6 {[%emt 0:10:37]} (20... Rac8 $11) 21. Be3 $16 {[%emt 0:01:29]} a5 {[%emt 0:01:07]} 22. Qd2 {[%emt 0:07:59]} b4 {[%emt 0:02:25]} ({Black should play} 22... Rac8) 23. Rc4 {[%emt 0:03:06]} Rac8 {[%emt 0:00:23]} 24. Rfc1 {[%emt 0:00:13]} Rc7 {[%emt 0:01:05]} 25. Kg2 {[%emt 0:04:48]} Rfc8 {[%emt 0:00:14]} 26. b3 {[%emt 0:02:27]} Bd6 {[%emt 0:00:55]} 27. Bf1 {[%emt 0:01:42]} Qb7 {[%emt 0:01:14]} 28. Bf2 {[%emt 0:00:57]} e4 {[%emt 0:07:27]} 29. Be2 {[%emt 0:00:46]} (29. fxe4 Nxe4 30. Qd3 Nxf2 31. Kxf2 Rxc4 32. Rxc4 Rxc4 33. Qxc4 Qb6+ 34. Kg2 Qd8 $15) 29... exf3+ {[%emt 0:00:30]} 30. Bxf3 {[%emt 0:00:09]} Nd7 {[%emt 0:01:15] [#]} (30... Qb8 $14) 31. Rc6 {[%emt 0:01:24]} (31. Rxc7 $1 $16 Rxc7 32. Rc6) 31... Ne5 $11 {[%emt 0:00:17]} 32. Qe2 {[%emt 0:01:08]} Nxc6 {[%emt 0:02:27]} 33. dxc6 {[%emt 0:00:07]} Qb8 {[%emt 0:00:07]} ({Don't go for} 33... Rxc6 $2 34. Rxc6 (34. Bxc6 Qb8 $18) 34... Qb8 (34... Rxc6 $2 {too greedy.} 35. Qe8+ Kh7 36. Bxc6 $18) 35. Rb6 $18) 34. Bd5 {[%emt 0:00:29]} Re8 {[%emt 0:01:26]} 35. Qc4 {[%emt 0:00:46]} Re5 $1 {[%emt 0:02:02]} 36. Rd1 {[%emt 0:01:58]} Rce7 {[%emt 0:01:25]} 37. Bf3 {[%emt 0:00:42]} Bc7 {[%emt 0:01:00]} (37... Rg5 {is more complex.} 38. Qh4 Rf5 39. Qc4 Re8) 38. Bc5 $1 {[%emt 0:02:51]} Rxc5 {[%emt 0:01:26]} 39. Qxc5 {[%emt 0:00:41]} Qe8 {[%emt 0:00:10]} 40. Rd2 {[%emt 0:00:00]} Re5 {[%emt 0:00:00]} 41. Qc4 {[%emt 0:01:43]} Re7 {[%emt 0:12:11]} 42. Rd5 {[%emt 0:00:55]} Re3 {[%emt 0:04:42]} 43. Rd7 {[%emt 0:00:52]} Re7 $1 {[%emt 0:01:19]} 44. Qd5 {[%emt 0:04:05]} Rxd7 {[%emt 0:00:36]} 45. cxd7 {[%emt 0:00:14]} Qe7 {[%emt 0:00:20]} 46. Be4 {[%emt 0:00:21]} Kf8 {[%emt 0:01:07]} 47. Bd3 {[%emt 0:00:34]} Bd8 {[%emt 0:00:44]} 48. Bc4 {[%emt 0:00:11]} Qf6 {[%emt 0:00:48]} 49. Qc5+ {[%emt 0:03:22]} Qe7 {[%emt 0:00:23]} 50. Qc6 {[%emt 0:02:56]} Qe5 {[%emt 0:01:38]} 51. Qf3 {[%emt 0:01:37]} Qb2+ {[%emt 0:00:26]} 52. Kh3 {[%emt 0:00:34]} Qf6 $1 {[%emt 0:00:03]} 53. Qxf6 {[%emt 0:02:08]} Bxf6 {[%emt 0:01:50]} 54. Kg4 {[%emt 0:01:16]} Ke7 {[%emt 0:00:09]} 55. d8=Q+ {[%emt 0:00:30]} Kxd8 {[%emt 0:00:09]} 56. Bxf7 {[%emt 0:00:01]} g5 $1 {[%emt 0:00:02]} 57. Kf5 {[%emt 0:00:44]} 1/2-1/2

[Event "Chinese League Division-A 2024"]
[Site "Fuling Chongqing"]
[Date "2024.07.01"]
[Round "5.28"]
[White "Ma, Qun"]
[Black "Lin, Chen"]
[Result "1-0"]
[ECO "B12"]
[WhiteElo "2643"]
[BlackElo "2484"]
[Annotator "TA"]
[PlyCount "69"]
[EventDate "2024.06.28"]
[EventType "team-tourn"]
[EventCountry "CHN"]
[SourceTitle "playchess.com"]
[Source "ChessBase"]
[SourceQuality "1"]
[TimeControl "40/5400+30:1800+30"]

{[%evp 9,69,11,19,14,17,0,40,30,43,0,18,0,0,0,0,0,58,55,100,95,161,155,149,160,170,163,341,279,286,283,262,262,348,254,250,235,231,226,251,262,228,149,435,288,293,282,281,278,299,281,288,293,287,262,298,278,521,511,566,591,996,983]} 1. e4 {[%emt 0:00:10]} c6 {[%emt 0:01:24]} 2. d4 {[%emt 0:00:23]} d5 {[%emt 0:00:06]} 3. e5 {[%emt 0:03:25]} c5 {[%emt 0:00:13]} 4. dxc5 {[%emt 0:03:53]} e6 {[%emt 0:00:25]} 5. a3 {[%emt 0:00:47]} Bxc5 {[%emt 0:00:32]} 6. Qg4 {[%emt 0:00:27]} Ne7 {[%emt 0:00:26]} 7. Nf3 {[%emt 0:02:19][%cal Ob2b4] b4! is the strong threat.} Nf5 {[%emt 0:15:55]} 8. Bd3 {[%emt 0:01:52] Threatens to win with Bxf5. White is slightly better.} h5 {[%emt 0:00:39]} 9. Qh3 {[%emt 0:07:53]} Nc6 {[%emt 0:03:45]} 10. Bxf5 {[%emt 0:00:42]} exf5 {[%emt 0:00:12]} 11. Qg3 {[%emt 0:00:02]} Kf8 {[%emt 0:09:16]} 12. h4 {[%emt 0:03:43]} Be6 {[%emt 0:00:36]} ({Black should try} 12... Qa5+ $11 13. Bd2 Qa6) 13. O-O $1 $14 {[%emt 0:05:09][%cal Bh1f1,Bf1d1,Bd1d5][%mdl 32]} Rc8 {[#]} 14. Rd1 $1 {[%emt 0:00:31]} Qb6 {[%emt 0:10:30] [#]} (14... Qa5 $16 {was necessary.}) 15. b4 $1 $18 {[%emt 0:10:45]} Be7 {[%emt 0:00:48]} 16. Nc3 {[%emt 0:02:04]} Nd8 {[%emt 0:14:34]} 17. Be3 {[%emt 0:06:44]} Qa6 {[%emt 0:02:15]} (17... d4 {is a better defense.} 18. Bxd4 (18. Rxd4 $2 Rxc3 19. Rd6 Qc7 $19) 18... Qa6) 18. Nxd5 {[%emt 0:04:12]} Bxd5 {[%emt 0:00:23]} 19. Rxd5 {[%emt 0:00:05]} Ne6 {[%emt 0:00:15] Strongly threatening ...f4.} 20. Nd4 {[%emt 0:05:06]} g6 {[%emt 0:07:00]} 21. b5 {[%emt 0:02:26][%cal Bb4b5,Bb5a6,Ba6b7][%mdl 32]} Nxd4 {[%emt 0:03:56]} 22. bxa6 {[%emt 0:04:55]} (22. Bxd4 Qe6 23. Rd6 Bxd6 24. exd6 Rh7) 22... Ne2+ {[%emt 0:00:04]} 23. Kh2 {[%emt 0:00:34]} Nxg3 {[%emt 0:00:04]} 24. axb7 {[%emt 0:00:08]} Rb8 {[%emt 0:00:05]} 25. Rd7 {[%emt 0:07:13]} Ne4 {[%emt 0:01:11][%mdl 8192] This costs Black the game.} (25... Ke8 $16 {was called for.} 26. Rc7 Bd8) 26. Bxa7 {[%emt 0:01:12] Black is weak on the dark squares} Nc5 {[%emt 0:00:12]} 27. Rd5 {[%emt 0:02:35]} (27. Rxe7 Kxe7 28. Bxc5+ Kd7 $14) 27... Rxb7 {[%emt 0:02:46]} 28. Bxc5 {[%emt 0:00:05]} Bxc5 {[%emt 0:00:04]} 29. Rxc5 {[%emt 0:00:03][%mdl 4096] Endgame. KRR-KRR} Ke7 {[%emt 0:00:08]} 30. a4 {[%emt 0:00:03][%cal Ba3a4,Ba4a5,Ba5a6][%mdl 32]} Rb4 {[%emt 0:01:30]} 31. Kh3 {[%emt 0:04:56]} Rd8 {[%emt 0:03:55]} 32. a5 {[%emt 0:00:05]} Rdd4 $2 {[%emt 0:00:06] [#]} (32... Rd7 33. c4 Rb3+ 34. Kh2 Ra7) 33. c4 $1 {[%emt 0:00:16] White is clearly winning.} Rb3+ {[%emt 0:00:30]} (33... Rb7 34. a6) 34. f3 {[%emt 0:03:00]} Rd2 {[%emt 0:00:30]} 35. a6 {[%emt 0:02:14] Weighted Error Value: White=0.20 (precise) /Black=0.50.  Loses game:     	---       	Black=1      Mistake:       	---       	Black=4      Inaccurate:     	White=2     	Black=4      OK:         	White=16    	Black=11     Best:        	White=2     	Black=3      Strong:       	White=2     	---} 1-0

[Event "Chinese League Division-A 2024"]
[Site "Fuling Chongqing"]
[Date "2024.07.01"]
[Round "5.29"]
[White "Guo, Qi"]
[Black "Zhai, Mo"]
[Result "1/2-1/2"]
[ECO "E52"]
[WhiteElo "2362"]
[BlackElo "2348"]
[Annotator "TA"]
[PlyCount "60"]
[EventDate "2024.06.28"]
[EventType "team-tourn"]
[EventCountry "CHN"]
[SourceTitle "playchess.com"]
[Source "ChessBase"]
[SourceQuality "1"]
[TimeControl "40/5400+30:1800+30"]

{[%evp 19,60,3,18,8,8,10,14,10,0,4,0,10,6,0,0,0,8,7,6,7,13,18,16,0,0,0,0,0,0,0,0,0,0,0,0,0,0,0,0,0,0,0,0]} 1. d4 {[%emt 0:00:04]} Nf6 {[%emt 0:00:16]} 2. c4 {[%emt 0:00:09]} e6 {[%emt 0:00:10][%cal Be7e6,Be6d5,Bd5e4][%mdl 32]} 3. Nc3 {[%emt 0:01:44]} Bb4 {[%emt 0:00:42]} 4. e3 {[%emt 0:01:03]} O-O {[%emt 0:02:20]} 5. Bd3 {[%emt 0:00:24]} d5 {[%emt 0:00:23]} 6. Nf3 {[%emt 0:01:33]} b6 {[%emt 0:03:45]} 7. cxd5 {[%emt 0:02:59]} exd5 {[%emt 0:00:09]} 8. Ne5 {[%emt 0:01:55]} Bb7 {[%emt 0:01:34]} 9. O-O {[%emt 0:00:11]} Nbd7 {[%emt 0:00:17]} 10. f4 {[%emt 0:00:25]} c5 {[%emt 0:01:08] The position is equal.} 11. Bd2 {[%emt 0:05:51]} Ne4 {[%emt 0:02:36]} 12. Nxe4 {[%emt 0:05:06]} dxe4 {[%emt 0:00:17]} 13. Bc4 {[%emt 0:00:04] next Bxb4 is good for White.} Bxd2 {[%emt 0:06:38]} 14. Qxd2 {[%emt 0:00:11]} Nxe5 {[%emt 0:05:01]} 15. fxe5 {[%emt 0:00:10]} Bd5 {[%emt 0:01:02]} 16. b3 {[%emt 0:12:24]} cxd4 {[%emt 0:24:04] [#] Strongly threatening ...d3.} 17. exd4 {[%emt 0:01:34]} Rc8 {[%emt 0:00:56]} 18. Rac1 {[%emt 0:00:45]} Bxc4 {[%emt 0:08:33]} 19. bxc4 {[%emt 0:00:14]} f6 {[%emt 0:00:11]} 20. exf6 {[%emt 0:05:59]} ({Don't play} 20. e6 Rc6 21. Qe3 (21. d5 Rxe6 22. Qe3 Re5 $17) 21... Rxe6 $17) 20... Rxf6 {[%emt 0:00:09]} 21. Rxf6 {[%emt 0:00:06]} Qxf6 $11 {[%emt 0:00:08][%mdl 4096] Endgame. KQR-KQR} 22. Qe3 {[%emt 0:00:06]} Qe6 {[%emt 0:04:31]} 23. d5 {[%emt 0:01:37]} Qe5 {[%emt 0:00:18]} 24. a4 {[%emt 0:00:32]} h6 {[%emt 0:04:37]} 25. h3 {[%emt 0:03:31]} Rc5 {[%emt 0:03:23]} 26. Kh1 {[%emt 0:00:27]} Kh7 {[%emt 0:01:28]} 27. Kg1 {[%emt 0:00:06]} Kg8 {[%emt 0:01:50]} 28. Kh1 {[%emt 0:00:13]} Kh7 {[%emt 0:00:34]} 29. Kg1 {[%emt 0:00:05]} Kg8 {[%emt 0:00:20]} 30. Kh1 {[%emt 0:00:04]} Kh7 {[%emt 0:00:11] An uneventful encounter.   Weighted Error Value: White=0.02 (flawless) /Black=0.01 (flawless) .  OK:         	White=8     	Black=9} 1/2-1/2

[Event "Chinese League Division-A 2024"]
[Site "Fuling Chongqing"]
[Date "2024.07.01"]
[Round "5.30"]
[White "Lu, Miaoyi"]
[Black "Gao, Muziyan"]
[Result "1-0"]
[ECO "B54"]
[WhiteElo "2449"]
[BlackElo "1943"]
[Annotator "TA"]
[PlyCount "85"]
[EventDate "2024.06.28"]
[EventType "team-tourn"]
[EventCountry "CHN"]
[SourceTitle "playchess.com"]
[Source "ChessBase"]
[SourceQuality "1"]
[TimeControl "40/5400+30:1800+30"]

{[%evp 12,85,31,23,20,8,26,25,30,34,38,32,43,21,146,149,130,134,146,144,185,182,164,166,143,159,160,175,159,138,170,157,213,214,180,133,151,130,161,143,143,164,175,119,354,364,358,358,368,369,358,352,362,343,404,405,433,453,553,589,559,578,589,618,609,604,701,676,763,762,732,715,808,733,841,839]} 1. e4 {[%emt 0:00:01]} c5 {[%emt 0:00:08]} 2. Nc3 {[%emt 0:00:03]} Nc6 {[%emt 0:01:21]} 3. Nf3 {[%emt 0:00:03]} d6 {[%emt 0:07:13]} 4. Bb5 {[%emt 0:00:16]} Bd7 {[%emt 0:01:54]} 5. Bxc6 {[%emt 0:00:33]} Bxc6 {[%emt 0:00:09]} 6. d4 {[%emt 0:00:04]} cxd4 {[%emt 0:01:23]} 7. Nxd4 {[%emt 0:00:02]} Nf6 {[%emt 0:00:43]} 8. Qe2 {[%emt 0:00:02]} e6 {[%emt 0:03:58]} 9. Bf4 {[%emt 0:00:16]} Be7 {[%emt 0:18:50] White has an edge.} 10. O-O-O {[%emt 0:00:29][%cal Ba1d1,Bd1d3,Bd3d6][%mdl 32]} O-O {[%emt 0:09:10]} 11. Rd3 {[%emt 0:00:43]} Qa5 {[%emt 0:10:26]} 12. Rhd1 Rfd8 (12... Rac8 $11) 13. Nxc6 $16 bxc6 14. Bxd6 Bxd6 {[%emt 0:01:29]} 15. Rxd6 {[%emt 0:15:22]} Rdb8 {[%emt 0:15:11][%cal Ob8b2]} 16. Rxc6 {[%emt 0:18:55]} Qg5+ {[%emt 0:06:19]} 17. Qd2 {[%emt 0:03:30]} Qxg2 {[%emt 0:00:26]} 18. f4 {[%emt 0:00:17]} Qh3 {[%emt 0:06:04]} 19. Rd6 {[%emt 0:08:17]} h6 {[%emt 0:01:36]} 20. Rg1 {[%emt 0:05:19]} Qh4 {[%emt 0:01:09]} 21. Rd4 {[%emt 0:05:20]} Nh5 {[%emt 0:11:08] [#]} (21... Ne8 $16 22. Rd1 Kh7) 22. f5 $1 $18 {[%emt 0:00:02] Strongly threatening e5.} Qf6 {[%emt 0:01:15]} 23. fxe6 {[%emt 0:04:18]} (23. e5 $18 Qxe5 24. Rh4 (24. fxe6 Qxe6 25. Nd5 Qe5 $16)) 23... fxe6 $16 {[%emt 0:00:08]} 24. Rd6 {[%emt 0:03:13]} Kh8 {[%emt 0:01:19]} 25. Qd4 {[%emt 0:05:03]} Qf4+ {[%emt 0:01:00]} 26. Kb1 {[%emt 0:00:01] White is more active.} Re8 {[%emt 0:00:38]} 27. Nb5 {[%emt 0:02:38]} ({White should try} 27. Rd7 $18 Rg8 28. Rd6 (28. Rxa7 Rad8 $18)) 27... Qf7 {[%emt 0:00:30] Loses the game.} (27... Qxh2 $16 {was called for.} 28. Qd1 (28. Nxa7 $2 {too greedy.} Rxa7 $19) (28. Nc7 Rac8 $17) 28... Qe5) 28. Rd7 $18 {[%emt 0:03:16]} Re7 {[%emt 0:00:12]} 29. Rd8+ {[%emt 0:02:22]} ({Much less strong is} 29. Nd6 Qf8 30. Rxe7 Qxe7 $18) 29... Rxd8 {[%emt 0:00:06]} 30. Qxd8+ {[%emt 0:00:02]} Qe8 {[%emt 0:01:11]} 31. Qxe8+ {[%emt 0:00:29]} Rxe8 {[%emt 0:00:02][%cal Be7e8,Be8g8,Bg8b8,Bb8b6,Bb6c6][%mdl 32]} 32. Nxa7 {[%emt 0:00:05][%mdl 4096] Endgame. KRN-KRN} g5 {[%emt 0:00:40]} 33. Nb5 {[%emt 0:05:20]} Nf6 {[%emt 0:00:41]} 34. Nd6 {[%emt 0:00:44][%cal Oe4e5] [#] Threatens to win with e5! White is clearly winning.} Rg8 {[%emt 0:00:29]} 35. c4 {[%emt 0:02:44][%cal Bc2c4,Bc4c5][%mdl 32]} Nd7 {[%emt 0:00:10]} 36. b4 {[%emt 0:00:58]} Rb8 {[%emt 0:00:59]} 37. a3 {[%emt 0:00:05]} Rb6 {[%emt 0:00:30]} 38. Rd1 {[%emt 0:00:13]} Kg8 {[%emt 0:00:15] Prevents Nf7} 39. Ka2 {[%emt 0:00:43]} Kf8 {[%emt 0:00:22]} 40. c5 {[%emt 0:00:00]} Rc6 {[%emt 0:00:00]} 41. Rf1+ {[%emt 0:01:10]} Ke7 {[%emt 0:00:36]} 42. Rf7+ {[%emt 0:00:09]} Kd8 {[%emt 0:00:01]} 43. b5 {[%emt 0:01:24] Weighted Error Value: White=0.08 (flawless) /Black=0.29 (precise) .  Loses game:     	---       	Black=1      Mistake:       	White=2     	Black=2      OK:         	White=17    	Black=6      Best:        	White=2     	Black=2      Strong:       	White=1     	---} 1-0

[Event "Chinese League Division-A 2024"]
[Site "Fuling Chongqing"]
[Date "2024.07.02"]
[Round "6.1"]
[White "Yu, Yangyi"]
[Black "Chen, Qi b"]
[Result "1/2-1/2"]
[ECO "D80"]
[WhiteElo "2715"]
[BlackElo "2481"]
[Annotator "TA"]
[PlyCount "69"]
[EventDate "2024.06.28"]
[EventType "team-tourn"]
[EventCountry "CHN"]
[SourceTitle "playchess.com"]
[Source "ChessBase"]
[SourceQuality "1"]
[TimeControl "40/5400+30:1800+30"]

{[%evp 9,69,0,24,-4,5,-46,10,-3,0,-2,1,9,5,0,8,2,3,2,0,0,0,-4,-7,-6,0,0,0,0,0,0,-6,-9,-8,-21,-7,-8,-3,-8,-8,-12,0,0,0,-10,-18,-7,-13,-10,-4,-10,-9,-20,0,-1,0,0,0,0,4,8,7,1]} 1. d4 {[%emt 0:00:05]} Nf6 {[%emt 0:00:10]} 2. c4 {[%emt 0:00:13]} g6 {[%emt 0:00:09]} 3. Nc3 {[%emt 0:07:15]} d5 {[%emt 0:00:07]} 4. Bg5 {[%emt 0:06:00]} c5 {[%emt 0:00:19]} 5. e3 {[%emt 0:02:15]} cxd4 {[%emt 0:01:35]} 6. Qxd4 {[%emt 0:04:32][%cal Rc4d5]} Nc6 {[%emt 0:09:58][%cal Bb8c6,Bc6d8,Bd8e6][%mdl 32]} 7. Qd2 {[%emt 0:10:36]} (7. Qd1 $11) 7... dxc4 ({Black should try} 7... Ne4 $15 8. Nxe4 dxe4) 8. Qxd8+ $11 {[%emt 0:00:00] The position is equal.} Nxd8 {[%emt 0:15:48]} 9. Bxc4 {[%emt 0:00:00] [#] Strongly threatening Nb5.} Bg7 {[%emt 0:00:22]} 10. Nge2 {[%emt 0:00:00]} Ne6 {[%emt 0:06:32]} 11. Bh4 {[%emt 0:00:00]} Bd7 {[%emt 0:01:23]} 12. O-O {[%emt 0:03:10]} Rc8 {[%emt 0:02:48]} 13. Bb3 {[%emt 0:03:55]} O-O {[%emt 0:05:15]} 14. Rfd1 {[%emt 0:01:21] [#] Hoping for Bxf6.} Rfd8 {[%emt 0:01:20]} 15. Rac1 {[%emt 0:07:47]} Kf8 {[%emt 0:02:51]} 16. f3 {[%emt 0:01:42]} a6 {[%emt 0:09:45]} 17. Rd2 {[%emt 0:04:48]} Be8 {[%emt 0:07:09]} 18. Bxe6 {[%emt 0:09:27]} fxe6 {[%emt 0:00:12]} 19. Nd4 {[%emt 0:03:58]} Bf7 {[%emt 0:04:56]} 20. Rcd1 {[%emt 0:01:11] Black must now prevent Bxf6.} Ke8 {[%emt 0:00:59]} 21. Kf2 {[%emt 0:02:50]} Nd5 {[%emt 0:05:03]} 22. Ne4 {[%emt 0:05:04]} h6 {[%emt 0:00:22]} 23. Bg3 {[%emt 0:06:55]} Nf6 {[%emt 0:02:08]} 24. Nc3 {[%emt 0:03:25]} Nd5 {[%emt 0:00:13]} 25. Nde2 {[%emt 0:06:41]} Nxc3 {[%emt 0:02:00]} 26. Nxc3 {[%emt 0:05:37]} Rxd2+ 27. Rxd2 Bxc3 28. bxc3 {[%emt 0:00:00]} ({Avoid the trap} 28. Rc2 $2 Be1+ 29. Kxe1 Rxc2 $19) 28... Rxc3 {[%emt 0:03:14][%cal Oe6e5][%mdl 4096] Endgame. KRB-KRB} 29. Be5 {[%emt 0:00:00]} Rc5 {[%emt 0:00:30]} 30. Bd4 {[%emt 0:00:00]} Rd5 {[%emt 0:01:23]} 31. e4 {[%emt 0:03:54]} Rd8 32. a3 {[%emt 0:00:00]} e5 {[%emt 0:01:25]} 33. Bc3 {[%emt 0:04:02]} Rxd2+ 34. Bxd2 {[%emt 0:00:00]} h5 {[%emt 0:02:27]} 35. Bc3 {[%emt 0:00:00] A rather calm draw.   Weighted Error Value: White=0.06 (flawless) /Black=0.07 (flawless) .  Mistake:       	White=1     	Black=1      OK:         	White=9     	Black=10     Best:        	White=1     	Black=1} 1/2-1/2